Cogmind - Beta 10.2 *** ADVENTURER MODE // 2021.11.10 @ 08:04:56 Player: Rogirek Result: Destroyed by D-53 Grenadier with Mini Grenade Launcher Performance ------------- Evolutions (0) 0 Regions Visited (2) 400 Robots Destroyed (35) 175 Value Destroyed (754) 754 Prototype IDs (2) 40 Alien Tech Used (0) 0 Bonus (28) 28 TOTAL SCORE: 1397 Bonus ------- Follower Combat Kills 28 Cogmind --------- Core Integrity 0/250 Matter 280/300 Energy 250/250 System Corruption 11% Temperature Cool (0) Movement Walking (150) Ox1 Location -10/Mines Parts ------- > --- POWER (1) -------- Ion Engine > --- PROPULSION (2) --- Armored Treads Carbon-fiber Leg > --- UTILITY (2) ------ Medium Storage Unit Medium Storage Unit > --- WEAPON (2) ------- Grenade Launcher Great Maul > --- INVENTORY (12) --- Light Angular Momentum Engine Aluminum Leg Improved Heat Sink Compact Matter Pod (119) Hardened Medium Armor Plating Improved Trap Extractor Light Assault Rifle Light Assault Rifle Peak State ------------ > --- POWER ------------ Ion Engine > --- PROPULSION ------- Armored Treads Carbon-fiber Leg > --- UTILITY ---------- Medium Storage Unit Medium Storage Unit > --- WEAPON ----------- Grenade Launcher Great Maul > --- INVENTORY -------- Light Angular Momentum Engine Aluminum Leg Improved Heat Sink Compact Matter Pod Hardened Medium Armor Plating Improved Trap Extractor Light Assault Rifle Light Assault Rifle [Rating: 15] Favorites ----------- Power Light Ion Engine Engine Light Ion Engine Propulsion Wheel Treads Light Treads Leg Aluminum Leg Wheel Wheel Hover Unit Hover Unit Utility Medium Storage Unit Storage Medium Storage Unit Weapon Light Assault Rifle Ballistic Gun Light Assault Rifle Launcher Grenade Launcher Impact Weapon Great Maul Build | -11 -10 -10 ------- Run | Scr Mat Min Slots Evolved . | . . . Power . | . . . Propulsion . | . . . Utility . | . . . Weapon . | . . . Parts Attached 42 | 7 22 13 Power 7 | 1 2 4 Engine 7 | 1 2 4 Core . | . . . Reactor . | . . . Propulsion 15 | 2 9 4 Treads 3 | . . 3 Leg 5 | 2 2 1 Wheel 5 | . 5 . Hover 2 | . 2 . Flight . | . . . Utility 6 | 2 4 . Device . | . . . Storage 6 | 2 4 . Processor . | . . . Hackware . | . . . Protection . | . . . Artifact . | . . . Weapon 14 | 2 7 5 Energy Gun . | . . . Energy Cannon . | . . . Ballistic Gun 10 | 2 5 3 Ballistic Cannon . | . . . Launcher 3 | . 2 1 Special Weapon . | . . . Impact Weapon 1 | . . 1 Slashing Weapon . | . . . Piercing Weapon . | . . . Special Melee Weapon . | . . . Unidentified Prototypes . | . . . Parts Lost 8 | . 1 7 Power 3 | . . 3 Propulsion 2 | . . 2 Utility . | . . . Weapon 3 | . 1 2 Highest Loss Streak 3 | . 1 3 Average Slot Usage (%) 98 | . 99 98 Engine 13 | . 14 12 Treads 10 | . . 21 Leg 6 | . 11 . Wheel 10 | . 16 4 Storage 28 | . 28 28 Ballistic Gun 25 | . 27 23 Launcher 1 | . . 2 Naked Turns . | . . . Heaviest Build 28 | 14 24 28 Greatest Support 40 | 20 20 40 Greatest Overweight (x) 3 | 3 2 1 Average Overweight (x) . | . . . Largest Inventory Capacity 12 | 8 12 12 Average Capacity 11 | 7 11 12 Most Carried 12 | 7 12 12 Average Carried 10 | 5 10 11 Final Capacity 12 | 8 12 12 Final Carried 12 | 7 12 8 Class Distribution -------------------- 100% | Mutant Dominant Class ---------------- Mutant | -10/Materials Mutant | -10/Mines Resources | -11 -10 -10 ----------- Run | Scr Mat Min Matter Collected 1221 | 339 389 493 Remotely . | . . . Salvage Created 1089 | 156 307 626 Parts 73 | 14 29 30 Haulers Intercepted 1 | . 1 . Recyclers Shooed . | . . . Parts Field Recycled . | . . . Retrieved Matter . | . . . Parts Self-Destructed . | . . . Prevented . | . . . Kills | -11 -10 -10 ------- Run | Scr Mat Min Combat Hostiles Destroyed 35 | . 10 25 Melee 3 | . . 3 Guns 20 | . 5 15 AOE 12 | . 5 7 Classes Destroyed 8 | 3 4 1 Worker 5 | 2 3 . Tunneler 2 | 2 . . Hauler 1 | . 1 . Recycler 1 | 1 . . Watcher 2 | . 2 . Swarmer 9 | . 7 2 Grunt 15 | . 3 12 Assembled 11 | . . 11 Best Kill Streak 9 | 2 4 9 Combat Bots Only 9 | . 3 9 Max Kills in Single Turn 2 | 1 2 2 Gunslinging . | . . . Exploded 2 | . 2 2 Melee 1 | . . 1 Uniques/NPCs Destroyed . | . . . Combat | -11 -10 -10 -------- Run | Scr Mat Min Damage Taken 1420 | . 303 1117 Core 261 | . 47 214 Absorbed by Shields . | . . . Core Remaining (%) 100 | 100 . . Volleys Fired 110 | 14 42 54 Largest 2 | 2 2 2 Hottest 40 | 40 40 40 Shots Fired 201 | 28 79 94 Gun 187 | 28 74 85 Cannon . | . . . Launcher 14 | . 5 9 Special . | . . . Kinetic 187 | 28 74 85 Thermal . | . . . Explosive 14 | . 5 9 Electromagnetic . | . . . Robot Hit Streak 22 | 13 10 22 Robot Miss Streak 2 | 2 2 1 Penetration Max . | . . . Secondary Targets 3 | . 1 2 Max Gunslinging Chain 1 | . 1 1 Shots Hit Robots 159 | 21 56 82 Core Hits 88 | 7 27 54 Critical Hits 1 | . . 1 Critical Kills 1 | . . 1 Critical Parts Destroyed . | . . . Melee Attacks 4 | . . 4 Impact 4 | . . 4 Slashing . | . . . Piercing . | . . . Sneak Attacks . | . . . Combat Hostiles . | . . . Follow-up Attacks . | . . . Damage Inflicted 2378 | 222 811 1345 Guns 1427 | 222 459 746 Cannons . | . . . Explosions 799 | . 352 447 Melee 123 | . . 123 Ramming 29 | . . 29 Kinetic 1427 | 222 459 746 Thermal . | . . . Explosive 799 | . 352 447 Electromagnetic . | . . . Impact 123 | . . 123 Slashing . | . . . Piercing . | . . . Highest Corruption 11 | . . 11 Average Corruption 10 | . . 10 Corruption Purged . | . . . Effects 4 | . . 4 Message Errors 1 | . . 1 Heat Flow Errors 1 | . . 1 Energy Discharges 1 | . . 1 Parts Rejected 1 | . . 1 Overload Shots . | . . . Overflow Damage 43 | . 11 32 Projectiles . | . . . Explosions 11 | . 11 . Melee 32 | . . 32 Knockbacks . | . . . Impact . | . . . Kinetic . | . . . Secondary . | . . . Self-Inflicted Damage 99 | . 64 35 Shots 3 | . 1 2 Rammed 16 | . . 16 Targets Rammed 17 | . . 17 Kicked . | . . . Crushed 1 | . . 1 Highest Temperature 162 | . 12 162 Average Temperature 16 | . 8 19 Received Heat Transfer 441 | . 102 339 Siege Activations . | . . . Robots Corrupted . | . . . Combat Hostiles . | . . . Parts Fried . | . . . Impact Corruptions 2 | . . 2 Robots Melted . | . . . Combat Hostiles . | . . . Parts Melted . | . . . Heat Transferred . | . . . Parts Sabotaged . | . . . Parts Stolen . | . . . Parts Stripped . | . . . Power Chain Reactions . | . . . Missiles Intercepted . | . . . Alert | -11 -10 -10 ------- Run | Scr Mat Min Peak Influence 259 | 25 259 254 Initial 63 | . 13 63 Average 118 | 8 113 151 Maximum Alert Level 1 | . 1 1 Low Security (%) 69 | 100 77 52 Level 1 30 | . 22 47 Level 2 . | . . . Level 3 . | . . . Level 4 . | . . . Level 5 . | . . . High Security . | . . . Max Security . | . . . Squads Dispatched 3 | . 2 1 Investigation 2 | . 2 . Extermination . | . . . Reinforcement . | . . . Assault 1 | . . 1 Garrison . | . . . Intercept . | . . . Construction Impeded . | . . . Haulers Reinforced . | . . . Stealth | -11 -10 -10 --------- Run | Scr Mat Min Distress Signals 1 | . 1 . Communications Jammed . | . . . Distress Signals . | . . . Times Spotted 51 | . 23 28 Peak Tracking Total 6 | . 6 6 Tactical Retreats 4 | . 3 1 Traps | -11 -10 -10 ------- Run | Scr Mat Min Traps Triggered 3 | . 3 . Indirectly . | . . . Trap Hack Attempts . | . . . Triggered . | . . . Disarmed . | . . . Reprogrammed . | . . . Reused . | . . . Traps Extracted . | . . . Installed . | . . . Triggered . | . . . Machines | -11 -10 -10 ---------- Run | Scr Mat Min Machines Disabled 3 | . 3 . Max in Single Turn 2 | . 2 . Machines Sabotaged . | . . . Garrisons Compromised . | . . . Overloaded Fab Kills . | . . . Fab Network Shutdowns . | . . . Hacking | -11 -10 -10 --------- Run | Scr Mat Min Machines Accessed 7 | . 6 1 Terminals 5 | . 5 . Fabricators . | . . . Repair Stations . | . . . Recycling Units 1 | . 1 . Scanalyzers . | . . . Garrison Access . | . . . Total Hacks 20 | . 19 1 Successful 15 | . 14 1 Failed 5 | . 5 . Catastrophic 2 | . 2 . Database Lockouts . | . . . Manual 13 | . 13 . Terminals 17 | . 17 . Fabricators . | . . . Repair Stations . | . . . Recycling Units 2 | . 2 . Scanalyzers . | . . . Garrison Access . | . . . Terminal Hacks 6 | . 5 1 Record 2 | . 2 . Prototype ID Bank 1 | . 1 . Open Door 1 | . . 1 Branch Access Points 1 | . 1 . Alert Level 1 | . 1 . Fabricator Hacks . | . . . Repair Station Hacks . | . . . Recycling Unit Hacks 1 | . 1 . Report Inventory 1 | . 1 . Scanalyzer . | . . . Garrison Access Hacks . | . . . Unauthorized Hacks 8 | . 8 . Terminals 7 | . 7 . Track 1 | . 1 . Botnet 5 | . 5 . Operators 1 | . 1 . Fabricators . | . . . Repair Stations . | . . . Recycling Units 1 | . 1 . Reject 1 | . 1 . Scanalyzers . | . . . Garrison Access . | . . . Data Cores Recovered . | . . . Used . | . . . Hacking Detections 6 | . 6 . Full Trace Events 1 | . 1 . Feedback Events . | . . . Feedback Blocked . | . . . Robot Schematics Acquired . | . . . Robots Built . | . . . Matter . | . . . Time . | . . . Total Robot Build Rating . | . . . Part Schematics Acquired . | . . . Parts Built . | . . . Matter . | . . . Time . | . . . Total Part Build Rating . | . . . Parts Repaired . | . . . Time . | . . . Parts Recycled . | . . . Recycled Matter . | . . . Retrieved Matter . | . . . Retrieved Components . | . . . Parts Scanalyzed . | . . . Part Schematics Acquired . | . . . Parts Damaged . | . . . Bothacking | -11 -10 -10 ------------ Run | Scr Mat Min Used RIF Installer . | . . . Robots Hacked . | . . . Non-combat . | . . . Combat . | . . . Robot Hacks Applied . | . . . Relay Couplers Released . | . . . Robots Rewired . | . . . Allies Hacked . | . . . Hacks Repelled . | . . . Allies | -11 -10 -10 -------- Run | Scr Mat Min Total Allies 2 | . . 2 Largest Group 1 | . . 1 Highest-Rated Group 31 | . . 31 Highest-Rated Ally 31 | . . 31 Total Orders . | . . . Ally Attacks 18 | . . 18 Total Damage 260 | . . 260 Kills 4 | . . 4 Allies Corrupted . | . . . Allies Melted . | . . . Intel | -11 -10 -10 ------- Run | Scr Mat Min Robot Analysis Total . | . . . Derelict Logs Recovered . | . . . Drone Launches . | . . . Drone Recoveries . | . . . Exploration | -11 -10 -10 ------------- Run | Scr Mat Min Turns Passed 2219 | 246 1022 951 Spaces Moved 1107 | 156 506 445 Core 15 | 15 . . Treads 338 | . . 338 Legs 407 | 141 243 23 Wheels 345 | . 261 84 Hover 2 | . 2 . Flight . | . . . Fastest Speed 50 | 50 90 90 Average Speed 125 | 121 107 147 Slowest Speed 200 | 200 150 190 Overloaded Moves . | . . . Propulsion Burnouts . | . . . Robots Hopped . | . . . Cave-ins Triggered . | . . . Exploration Rate (%) 48 | 8 66 71 Regions Visited 2 Branch Regions 1 Pre-discovered Areas . | . . . Known Exits Taken 1 | . 1 . Unknown Exits Taken 1 | 1 . . Scrap Searched . | . . . Spaces Dug . | . . . Terrain Destroyed 145 | . 73 72 Melee . | . . . Projectile . | . . . AOE 145 | . 73 72 Terrain Rammed . | . . . Walls Destroyed . | . . . Machines Disabled . | . . . Actions | -11 -10 -10 --------- Run | Scr Mat Min Total 1745 | 183 916 646 Wait 404 | . 318 86 Move 1105 | 155 505 445 Hop . | . . . Pick Up 37 | 7 15 15 Fast Attach 10 | 7 3 . Attach 12 | . 2 10 Detach . | . . . Swap 20 | . 17 3 Drop 26 | . 14 12 Fire 110 | 14 42 54 Melee 4 | . . 4 Ram . | . . . Kick . | . . . Crush 17 | . . 17 Escape Stasis . | . . . Rewire . | . . . Trap . | . . . Miscellaneous . | . . . Route ------- -11/Scrapyard -10/Materials (discovered 3 exits: [*Mat x2] / *Min) -10/Mines (discovered 1 exit: [*Mat]) History --------- Turn | Location | Event 24 | -11/Scrapyard | Discovered new exit (range 15) 247 | -11/Scrapyard | Entered Materials 305 | -10/Materials | Build established: Mutant 473 | -10/Materials | Identified exit to Mines 495 | -10/Materials | Discovered new exit (range 5) 1125 | -10/Materials | Discovered new exit (range 7) 1269 | -10/Materials | Entered Mines 1322 | -10/Mines | Discovered new exit (range 13) 1365 | -10/Mines | Met a Derelict testing a Signal Generator 1607 | -10/Mines | Found a hidden stash of uninstalled traps 1703 | -10/Mines | Received a Mining Laser from a helpful Derelict 1853 | -10/Mines | Core integrity fell below 50% 1904 | -10/Mines | Met a Derelict who couldn't figure out how to use a Trap Extractor 2027 | -10/Mines | Assembled infested the area 2120 | -10/Mines | Core integrity fell below 20% 2127 | -10/Mines | Destroyed 9 combat bots 2129 | -10/Mines | System corruption reached 10% 2159 | -10/Mines | Lost 3 parts (1p2n) 2220 | -10/Mines | Destroyed by D-53 Grenadier with Mini Grenade Launcher Last Messages --------------- 02128_ Lgt. Treads destroyed. 02128_ System corrupted by crushing effect (+4). 02130_ System corrupted: Lgt. Assault Rifle rejected. 02131_ K-01 Serf collects debris. 02135_ Destroyed Asb. Hover Unit. 02135_ Destroyed Asb. Maul. 02135_ as-61874 system corrupted by crushing effect. 02135_ as-61874 destroyed. 02136_ K-01 Serf collects debris. 02138_ Acquired 20 matter. 02140_ K-01 Serf collects debris. 02145_ The unstable cave ceiling collapses. 02145_ K-01 Serf collects debris. 02156_ System corrupted: Heat flow error (+187). 02157_ K-01 Serf collects debris. 02171_ as-79743 destroyed. 02173_ System corrupted: Energy discharge (-28). 02174_ Acquired 19 matter. 02198_ DCCP &FSV&E1ZW6N1LI:RQ 02213_ Acquired 23 matter. Map ----- +----------------------------------------------------+ | ???## #??????????????????????????????????????? | | ????## ##??????????????????????????????????????? | | ?????# ##???????????????????????????????????????? | | ?????# #????????????????????????????????????????? | | ?????# #????????????????????????????????????????? | | ?????# #????????????????????????????????????????? | | ?????# #????????????????????????????????????????? | | ?????# #????????????????????????????????????????? | | ?????# #????????????????????####????????????????? | | ?????# #????????????????????# ????????????????? | | ?????# #????????????????????# #????????????????? | | ?????# #????????????????????# ####?????????????? | | ?????# #????????????????????# ##????????????? | | ?????# #????????????????????# #????????????? | | ###### #????????????????????# ##???????????? | | #????????????????????# #???????????? | | !* #???????????????????## ## #????????? | | ########?????????########### #????????? | | %##?????#######???# < #####????????? | | ####?## # # ##??# ##????????????? | | %#### # #??# #### #?????????????? | | * ## #### #??# #?????????????? | | ##### ##?????????????? | | [ ## # # #??????????????? | | ##### = ######## #??????????????? | | #??##=% # # #??????# @ #??????????????? | | ??## ######??# #######??????????????? | | ??# # # #??# ##????????????????????? | | ??# # #??# ##?????????????????????? | | ??## # ## #??## #??????????????????????? | | #??# ###### # #???# #??????????????????????? | | ##?# #??####### #???# #??????????????????????? | | ### #????????# ##??? ??????????????????????? | | #????????# #???? ??????????????????????? | | #????????# #???? d ???????????? ?????????? | | ########???????# #???? d ???????????? #???????? | | ????## ##??????# #### #??????????? #####???? | | ????# #??????# #?????????? # ???? | | ????# ##?????# % #?????????? ??? | | ????# ##????######## ##????????? #???? | | ????# ####?######?? #???????? #????? | | ??#### ###="""##??# #???????? ??????? | | ### # ]= #??# ##??????? #???????? | | [ #" ]!! #??# ######## #????????? | | ## ###### =# [[###?## ## #?????????? | | ##=#????##!%!%# # ##?## #??????????? | | ##%#?????#* %== X ##### #???????????? | | ### #?????## *% # ##???????????? | | ??#%#??????### ## *!= ## ## #????????????? | | ??#!#????????############# ### ### #????????????? | +----------------------------------------------------+ Best States ------------- Heat Dissipation 25 Energy Generation 10 Energy Capacity 250 Matter Stores 300 Matter Capacity 300 Sight Range 16 Terrain Scan Density 10 Resistance: KI 20 Resistance: TH 20 Resistance: EX 20 Resistance: EM 20 Resistance: I 20 Resistance: S 20 Resistance: P 20 Evasion (%) 42 Recoil Reduction 2 Offensive Hacking 10 Item Schematics ----------------- None Robot Schematics ------------------ None Fabricated ------------ Nothing Alien Tech Used ----------------- None Achievements -------------- None Challenges ------------ None Game ------ Seed ChromaticLauncherCapacitor Manual? 0 Play Time 00:28:27 Cumulative 36.8 hours Start 2021.11.10 @ 07:36:37 End 2021.11.10 @ 08:04:56 Sessions 1 Manual Loads 0 Difficulty Adventurer Special Mode None Game No. 21 Rogue 7 Adventurer 14 Explorer 0 Win Type - Total 0 Types 0/0/0/0/0/0/0/0/0 Lore% 29 Gallery% 37 Achievement% 30 Wizard Run 0 Options --------- ASCII 0 Keyboard 0 Movement Mouse Keybinds 0 Fullscreen 1 Font 24/Smallcaps Map View 76x50 Tactical HUD 1 Map Filters NONE Filters NONE Steam 1 RUN: 6f059b2c-1788-4413-aba9-648daa080c52